bitfinex/quotes_ETHUSD_20250802
["timestamp","ask_amount","ask_price","bid_price","bid_amount"]
[1754144007077,33.0,3512.1,3512.0,0.4879]
[1754144007298,33.0,3512.1,3512.0,0.0189]
[1754144007469,33.35152028,3512.1,3512.0,0.0189]
[1754144009074,3.35152028,3512.1,3512.0,0.0189]
[1754144009278,33.35152028,3512.1,3512.0,0.0189]
[1754144009475,33.0,3512.1,3512.0,0.0189]
[1754144010688,33.2853,3512.1,3512.0,0.0189]
[1754144012207,3.2853,3512.1,3512.0,0.0189]
[1754144012515,33.2853,3512.1,3512.0,0.0189]
[1754144013464,33.0,3512.1,3512.0,0.0189]
[1754144013663,33.0,3512.1,3512.0,0.9323]
[1754144014799,33.0,3512.1,3512.0,0.0189]
[1754144015513,33.55,3512.1,3512.0,0.0189]
[1754144016518,0.78902028,3512.6,3512.0,0.0189]
[1754144016519,30.0,3512.3,3512.0,0.9323]
[1754144016736,3.0,3512.7,3512.0,0.0189]
[1754144016932,3.0,3512.5,3512.1,0.9134]
[1754144017232,3.55,3512.5,3512.2,0.9134]
[1754144017437,3.0,3512.3,3512.0,0.0189]
[1754144017645,33.0,3512.1,3512.0,0.0189]
[1754144018152,33.0,3512.1,3512.0,0.9323]
[1754144020942,33.0,3512.1,3512.0,0.4879]
[1754144021167,33.35152028,3512.1,3512.0,0.0189]
[1754144021331,35.1241726,3512.1,3512.0,0.0189]
[1754144021849,42.1441726,3512.1,3512.0,0.0189]
[1754144022037,42.4294726,3512.1,3512.0,0.0189]
[1754144024476,42.4294726,3512.1,3512.0,0.0209]
[1754144024630,12.4294726,3512.1,3512.0,0.0209]
[1754144025170,41.9919726,3512.1,3512.0,0.0209]
[1754144025327,40.57,3512.1,3512.0,0.0209]
[1754144025850,40.02,3512.1,3512.0,0.0209]
[1754144026054,40.02,3512.1,3512.0,0.9343]
[1754144026438,30.0,3512.1,3512.0,0.9343]
[1754144026644,30.0,3512.8,3512.0,0.9343]
[1754144026846,9.37565356,3512.5,3512.0,0.9343]
[1754144027056,3.55,3512.1,3512.0,0.0209]
[1754144027223,33.55,3512.1,3512.0,0.0209]
[1754144027427,34.31415232,3512.1,3512.0,0.0209]
[1754144027679,34.446,3512.1,3512.0,0.0209]
[1754144028700,35.08282028,3512.1,3512.0,0.0209]
[1754144029379,33.8353,3512.1,3512.0,0.0209]
[1754144030840,34.2938,3512.1,3512.0,0.0209]
[1754144031041,34.7313,3512.1,3512.0,0.0209]
[1754144031783,41.7513,3512.1,3512.0,0.0209]
[1754144035390,41.3138,3512.1,3512.0,0.0209]
[1754144035600,40.57,3512.1,3512.0,0.0209]
[1754144036484,40.57,3512.1,3512.0,0.9318]
[1754144036485,40.02,3512.1,3512.0,0.9318]
[1754144037661,40.02,3512.1,3512.0,0.0209]
[1754144038695,41.5235,3512.1,3512.0,0.0209]
[1754144038870,41.8088,3512.1,3512.0,0.0209]
[1754144039674,11.8088,3512.1,3512.0,0.0209]
[1754144039862,41.8088,3512.1,3512.0,0.0209]
[1754144040559,40.57,3512.1,3512.0,0.0209]
[1754144040783,40.02,3512.1,3512.0,0.0209]
[1754144041180,40.57,3512.1,3512.0,0.0209]
[1754144041358,41.0628,3512.1,3512.0,0.0209]
[1754144041568,40.57,3512.1,3512.0,0.0209]
[1754144041897,40.57,3512.1,3512.0,0.4775]
[1754144042102,40.57,3512.1,3512.0,0.0209]
[1754144042571,41.5235,3512.1,3512.0,0.0209]
[1754144044115,40.57,3512.1,3512.0,0.0209]
[1754144044693,40.57,3512.1,3512.0,0.4775]
[1754144045082,40.02,3512.1,3512.0,0.9318]
[1754144045415,40.02,3512.1,3512.0,0.0209]
[1754144045830,40.57,3512.1,3512.0,0.0209]
[1754144045997,42.13545232,3512.1,3512.0,0.0209]
[1754144046481,41.8088,3512.1,3512.0,0.0209]
[1754144046815,11.8088,3512.1,3512.0,0.0209]
[1754144047019,41.8088,3512.1,3512.0,0.0209]
[1754144047324,48.86262616,3512.1,3512.0,0.0209]
[1754144047825,21.70992549,3512.1,3512.0,0.0209]
[1754144047998,48.86262616,3512.1,3512.0,0.0209]
[1754144048319,42.4869726,3512.1,3512.0,0.0209]
[1754144048527,40.8553,3512.1,3512.0,0.0209]
[1754144048886,41.3481,3512.1,3512.0,0.0209]
[1754144049420,40.8553,3512.1,3512.0,0.0209]
[1754144049621,41.3481,3512.1,3512.0,0.0209]
[1754144049925,41.8088,3512.1,3512.0,0.0209]
[1754144050486,40.57,3512.1,3512.0,0.0209]
[1754144050690,40.02,3512.1,3512.0,0.0209]
[1754144050887,37.02,3512.1,3512.0,0.0209]
[1754144051086,37.02,3512.1,3512.0,0.4775]
[1754144051288,37.02,3512.1,3512.0,0.9318]
[1754144051789,40.02,3512.1,3512.0,0.9318]
[1754144051990,10.02,3512.1,3512.0,0.9318]
[1754144052191,40.02,3512.1,3512.0,0.9318]
[1754144053223,40.02,3512.1,3512.0,0.0209]
[1754144053722,40.02,3512.1,3512.0,0.9318]
[1754144053886,10.02,3512.1,3512.0,0.9318]
[1754144054110,40.02,3512.1,3512.0,0.9318]
[1754144054843,40.02,3512.1,3512.0,0.4775]
[1754144055045,40.02,3512.1,3512.0,0.0209]
[1754144055255,41.5235,3512.1,3512.0,0.0209]
[1754144055944,11.5235,3512.1,3512.0,0.0209]
[1754144056243,40.57,3512.1,3512.0,0.0209]
[1754144057053,11.0628,3512.1,3512.0,0.0209]
[1754144057349,40.02,3512.1,3512.0,0.0209]
[1754144057554,10.02,3512.1,3512.0,0.0209]
[1754144057723,40.02,3512.1,3512.0,0.0209]
[1754144059159,40.02,3512.1,3512.0,0.4775]
[1754144059468,40.02,3512.1,3512.0,0.9318]
[1754144060259,33.0,3512.1,3512.0,0.9318]
[1754144062704,30.0,3512.3,3512.0,0.9318]
[1754144062866,30.0,3512.1,3512.0,0.0209]
[1754144063067,30.0,3512.3,3512.0,0.0209]
[1754144063503,30.0,3512.3,3512.1,0.4873]
[1754144063801,30.0,3512.3,3512.1,0.9481]
[1754144064306,30.0,3512.3,3512.2,0.9481]
[1754144065324,33.0,3512.3,3512.2,0.9481]
[1754144066312,33.0,3512.3,3512.2,8.05821892]
[1754144066539,33.0,3512.3,3512.2,7.32375356]
[1754144066729,33.0,3512.3,3512.2,6.86295356]
[1754144066926,33.0,3512.3,3512.2,0.9481]
[1754144068239,3.0,3512.3,3512.2,0.9481]
[1754144068448,33.0,3512.3,3512.2,0.9481]
[1754144068749,33.0,3512.1,3512.0,0.0209]
[1754144069544,33.4939,3512.1,3512.0,0.0209]
[1754144069728,33.9585,3512.1,3512.0,0.0209]
[1754144070534,33.0,3512.1,3512.0,0.0209]
[1754144070844,33.9585,3512.1,3512.0,0.0209]
[1754144071944,34.5085,3512.1,3512.0,0.0209]
[1754144076821,34.79395,3512.1,3512.0,0.0209]
[1754144077463,33.28545,3512.1,3512.0,0.0209]
[1754144077854,33.28545,3512.1,3512.0,0.969]
[1754144079123,33.0,3512.1,3512.0,0.969]
[1754144079468,30.0,3512.3,3512.0,0.969]
[1754144079763,33.0,3512.2,3512.1,1.68256536]
[1754144080061,3.0,3512.2,3512.1,1.68256536]
[1754144080262,33.0,3512.2,3512.1,1.68256536]
[1754144080851,33.0,3512.2,3512.1,0.9481]
[1754144081252,3.0,3512.1,3512.0,0.0209]
[1754144081557,33.0,3512.1,3512.0,0.0209]
[1754144081780,3.0,3512.1,3512.0,0.0209]
[1754144082102,33.0,3512.1,3512.0,0.0209]
[1754144089169,33.4939,3512.1,3512.0,0.0209]
[1754144089996,33.0,3512.1,3512.0,0.0209]
[1754144090707,33.0,3512.1,3512.0,0.969]
[1754144091207,30.0,3512.1,3512.0,7.34465356]
[1754144091509,3.0,3512.2,3512.0,7.34465356]
[1754144091705,33.0,3512.1,3512.0,6.39655356]
[1754144092306,33.0,3512.1,3512.0,7.32875356]
[1754144092809,33.0,3512.1,3512.0,0.0209]
[1754144093011,33.4582,3512.1,3512.0,0.0209]
[1754144093211,33.0,3512.1,3512.0,0.0209]
[1754144094097,33.4582,3512.1,3512.0,0.0209]
[1754144094288,33.8885,3512.1,3512.0,0.0209]
[1754144096985,3.8885,3512.1,3512.0,0.0209]
[1754144097504,33.8885,3512.1,3512.0,0.0209]
[1754144101978,33.4582,3512.1,3512.0,0.0209]
[1754144102528,33.8885,3512.1,3512.0,0.0209]
[1754144103426,34.4385,3512.1,3512.0,0.0209]
[1754144105511,35.07532028,3512.1,3512.0,0.0209]
[1754144105711,35.4019726,3512.1,3512.0,0.0209]
[1754144106713,35.07532028,3512.1,3512.0,0.0209]
[1754144106921,35.4019726,3512.1,3512.0,0.0209]
[1754144108634,62.83227193,3512.1,3512.0,0.0209]
[1754144109430,63.11778193,3512.1,3512.0,0.0209]
[1754144109807,60.2704826,3512.1,3512.0,0.0209]
[1754144109991,44.4204826,3512.1,3512.0,0.0209]
[1754144110192,14.4204826,3512.1,3512.0,0.0209]
[1754144110401,43.74231,3512.1,3512.0,0.0209]
[1754144110711,42.02931,3512.1,3512.0,0.0209]
[1754144110907,3.8353,3512.0,3511.6,0.002]
[1754144111108,33.0,3511.7,3511.6,0.002]
[1754144111308,33.90152028,3511.7,3511.6,0.002]
[1754144111533,34.79002028,3511.7,3511.6,0.002]
[1754144112057,35.07532028,3511.7,3511.6,0.002]
[1754144112545,36.78832028,3511.7,3511.6,0.002]
[1754144113132,34.4385,3511.7,3511.6,0.002]
[1754144113347,34.64740916,3511.7,3511.6,0.002]
[1754144114326,41.66740916,3511.7,3511.6,0.002]
[1754144115251,41.95270916,3511.7,3511.6,0.002]
[1754144115451,55.15322944,3511.7,3511.6,0.002]
[1754144116339,58.00085309,3511.7,3511.6,0.002]
[1754144116536,55.15322944,3511.7,3511.6,0.002]
[1754144117541,42.30422944,3511.7,3511.6,0.002]
[1754144117960,41.659883,3511.7,3511.6,0.002]
[1754144118277,56.221883,3511.7,3511.6,0.002]
[1754144118926,59.06950665,3511.7,3511.6,0.002]
[1754144119326,62.39915897,3511.7,3511.6,0.002]
[1754144119662,3.55,3510.5,3509.7,0.4777]
[1754144119848,30.0,3510.2,3509.7,0.4777]
[1754144120053,3.0,3509.9,3509.7,0.4777]
[1754144120270,30.0,3509.7,3509.1,6.37565356]
[1754144120437,30.0,3509.7,3509.2,0.63756536]
[1754144121028,33.0,3509.7,3509.3,0.9322]
[1754144121363,30.0,3510.4,3509.4,0.9322]
[1754144121578,0.55,3509.6,3508.9,0.4777]
[1754144121779,30.0,3509.3,3508.9,0.4777]
[1754144122074,3.0,3508.8,3508.6,0.4948]
[1754144122239,33.0,3508.6,3508.3,0.4948]
[1754144122441,30.0,3508.5,3507.6,6.37565356]
[1754144122635,3.0,3508.3,3507.7,0.9659]
[1754144122832,30.0,3508.0,3507.8,0.9659]
[1754144123066,30.0,3509.5,3507.9,0.9659]
[1754144123275,30.0,3509.3,3508.4,9.85239914]
[1754144123429,30.0,3509.1,3508.4,9.85239914]
[1754144123630,30.0,3509.1,3508.5,1.95113991]
[1754144123830,30.0,3509.1,3508.5,0.98523991]
[1754144124067,30.0,3509.1,3508.9,9.85239914]
[1754144124270,30.0,3509.7,3509.0,0.9659]
[1754144124471,30.0,3509.7,3508.9,9.85239914]
[1754144124472,30.0,3509.7,3509.1,0.9659]
[1754144124670,30.0,3509.7,3509.2,1.08182991]
[1754144124877,30.0,3509.7,3509.3,0.9659]
[1754144125039,3.0,3509.4,3509.3,0.4948]
[1754144125246,30.0,3509.1,3508.3,0.4948]
[1754144125568,3.0,3509.2,3508.4,0.4711]
[1754144125767,0.55,3509.7,3508.5,10.34719914]
[1754144125768,30.0,3509.7,3508.5,10.34719914]
[1754144125985,0.49737882,3509.8,3506.4,3.0]
[1754144125986,3.55,3509.4,3506.4,3.0]
[1754144126147,3.55,3509.4,3508.5,0.4948]
[1754144126148,30.0,3509.1,3508.5,0.4948]
[1754144126333,3.0,3509.3,3508.6,0.4711]
[1754144126534,30.0,3509.2,3508.6,0.4711]
[1754144126741,30.0,3509.2,3508.7,0.4948]
[1754144127147,30.0,3509.2,3507.5,9.85239914]
[1754144127473,30.0,3509.0,3508.0,0.4948]
[1754144127671,30.0,3509.0,3508.1,0.4711]
[1754144128136,30.0,3508.8,3508.1,0.4711]
[1754144128338,3.0,3508.9,3508.1,0.4711]
[1754144128339,3.0,3508.5,3508.1,0.4711]
[1754144128537,3.0,3508.6,3508.1,0.9659]
[1754144128738,30.0,3508.5,3508.1,0.4711]
[1754144129063,30.0,3508.5,3508.2,0.4948]
[1754144130279,30.0,3508.5,3508.0,0.002]
[1754144130280,30.0,3508.3,3508.0,0.002]
[1754144130482,3.0,3508.1,3508.0,0.002]
[1754144130689,33.0,3508.1,3508.0,0.002]
[1754144132157,33.4582,3508.1,3508.0,0.002]
[1754144132365,33.9302,3508.1,3508.0,0.002]
[1754144135375,3.9302,3508.1,3508.0,0.002]
[1754144135776,33.9302,3508.1,3508.0,0.002]
[1754144135952,34.4802,3508.1,3508.0,0.002]
[1754144137582,34.83172028,3508.1,3508.0,0.002]
[1754144137784,35.22678544,3508.1,3508.0,0.002]
[1754144138092,38.07733131,3508.1,3508.0,0.002]
[1754144138400,50.93933131,3508.1,3508.0,0.002]
[1754144139094,51.22517131,3508.1,3508.0,0.002]
[1754144140263,48.37462544,3508.1,3508.0,0.002]
[1754144140668,47.62804,3508.1,3508.0,0.002]
[1754144140889,50.47858587,3508.1,3508.0,0.002]
[1754144141216,47.62804,3508.1,3508.0,0.002]
[1754144141505,49.34104,3508.1,3508.0,0.002]
[1754144141879,52.93817131,3508.1,3508.0,0.002]
[1754144142067,50.08762544,3508.1,3508.0,0.002]
[1754144142387,52.93817131,3508.1,3508.0,0.002]
[1754144143264,59.95817131,3508.1,3508.0,0.002]
[1754144143481,56.36104,3508.1,3508.0,0.002]
[1754144143981,55.81104,3508.1,3508.0,0.002]
[1754144144359,54.64804,3508.1,3508.0,0.002]
[1754144144698,41.78604,3508.1,3508.0,0.002]
[1754144145178,56.75610516,3508.1,3508.0,0.002]
[1754144145797,57.04140516,3508.1,3508.0,0.002]
[1754144146217,41.59934,3508.1,3508.0,0.002]
[1754144146376,41.04934,3508.1,3508.0,0.002]
[1754144146579,40.59114,3508.1,3508.0,0.002]
[1754144146782,37.30584,3508.1,3508.0,0.002]
[1754144146989,37.02,3508.1,3508.0,0.4968]
[1754144147165,40.02,3508.1,3508.0,0.4968]
[1754144147366,37.02,3508.1,3508.0,0.9679]
[1754144147596,30.0,3508.1,3508.0,0.9679]
[1754144148069,33.0,3508.1,3508.0,0.9679]
[1754144148404,33.0,3508.1,3508.0,0.002]
[1754144149306,33.0,3508.1,3508.0,0.4968]
[1754144149507,33.50760786,3508.1,3508.0,0.002]
[1754144149804,33.0,3508.1,3508.0,0.002]
[1754144152003,34.4951,3508.1,3508.0,0.002]
[1754144152207,33.55,3508.1,3508.0,0.002]
[1754144152388,33.0,3508.1,3508.0,0.002]
[1754144155317,33.55,3508.1,3508.0,0.002]
[1754144155543,33.0,3508.1,3508.0,0.002]
[1754144157179,3.0,3508.1,3508.0,0.002]
[1754144157391,33.0,3508.1,3508.0,0.002]
[1754144158813,33.0,3508.1,3508.0,0.4673]
[1754144159383,33.0,3508.1,3508.0,0.9181]
[1754144159584,0.84955204,3509.2,3508.0,0.9181]
[1754144159585,0.68544882,3509.8,3508.0,10.77049914]
[1754144159816,30.0,3509.5,3508.1,1.99314991]
[1754144160116,30.0,3509.5,3508.0,0.002]
[1754144160117,3.0,3509.0,3508.0,0.002]
[1754144160324,3.2853,3508.6,3508.0,0.002]
[1754144160520,30.0,3508.4,3508.0,0.002]
[1754144160706,30.0,3508.2,3508.1,0.4508]
[1754144160895,33.0,3508.2,3508.1,0.9161]
[1754144162618,33.0,3508.1,3508.0,0.002]
[1754144164112,3.0,3508.1,3508.0,0.9181]
[1754144164454,33.0,3508.1,3508.0,0.9181]
[1754144166955,33.0,3508.1,3508.0,0.002]
[1754144167482,33.4737,3508.1,3508.0,0.002]
[1754144167689,33.9451,3508.1,3508.0,0.002]
[1754144169557,34.2304,3508.1,3508.0,0.002]
[1754144169751,4.2304,3508.1,3508.0,0.002]
[1754144169955,34.2304,3508.1,3508.0,0.002]
[1754144170155,33.9451,3508.1,3508.0,0.002]
[1754144170465,33.0,3508.1,3508.0,0.002]
[1754144170800,33.4737,3508.1,3508.0,0.002]
[1754144171156,33.9451,3508.1,3508.0,0.002]
[1754144171562,34.4951,3508.1,3508.0,0.002]
[1754144171980,34.78087,3508.1,3508.0,0.002]
[1754144172386,35.15902204,3508.1,3508.0,0.002]
[1754144173094,33.75947,3508.1,3508.0,0.002]
[1754144173791,33.28577,3508.1,3508.0,0.002]
[1754144174195,33.28577,3508.1,3508.0,0.9181]
[1754144174196,30.28577,3508.1,3508.0,0.9181]
[1754144174429,0.4714,3509.3,3508.0,0.9181]
[1754144174733,3.0,3509.1,3508.1,0.9161]
[1754144174898,3.0,3508.9,3508.0,0.002]
[1754144175095,3.0,3508.5,3508.1,0.9161]
[1754144175295,30.0,3508.4,3508.0,0.002]
[1754144175627,30.0,3509.0,3508.0,0.002]
[1754144175830,30.0,3508.6,3508.1,0.9161]
[1754144175995,3.0,3508.3,3508.2,0.9161]
[1754144176196,0.4737,3509.1,3508.2,0.9161]
[1754144176396,0.4737,3509.4,3508.2,0.4508]
[1754144176591,30.4737,3509.2,3508.3,0.4653]
[1754144176907,3.0,3508.7,3508.3,0.4653]
[1754144177106,33.0,3508.5,3508.4,0.4508]
[1754144177323,33.0,3508.5,3508.4,0.9161]
[1754144177836,3.0,3508.5,3508.4,0.9161]
[1754144178037,30.0,3509.2,3508.4,1.99294991]
[1754144178338,3.0,3508.9,3508.5,0.9161]
[1754144178639,30.0,3509.2,3508.6,0.9161]
[1754144178927,3.0,3508.9,3508.7,0.4653]
[1754144179234,30.0,3509.2,3508.4,1.07684991]
[1754144179434,3.0,3509.1,3508.8,0.4508]
[1754144179621,3.0,3508.7,3508.4,1.07684991]
[1754144179820,1.22032932,3509.7,3508.4,1.07684991]
[1754144180028,30.0,3509.2,3508.4,1.07684991]
[1754144180335,30.0,3509.2,3508.5,0.9161]
[1754144180533,30.0,3509.0,3508.6,1.11539499]
[1754144180831,3.0,3509.1,3508.7,0.9161]
[1754144181001,1.22032932,3509.7,3508.6,10.05169413]
[1754144181202,30.0,3509.6,3508.8,0.9161]
[1754144181449,30.0,3509.4,3508.9,0.4653]
[1754144181742,30.0,3509.0,3508.4,1.07684991]
[1754144181988,3.0,3508.7,3507.5,9.85239914]
[1754144182268,3.0,3509.1,3508.1,0.929]
[1754144182428,3.0,3508.9,3508.2,2.00733991]
[1754144182626,3.0,3508.5,3508.2,2.00733991]
[1754144182830,30.0,3508.4,3508.3,0.4814]
[1754144183265,30.4982,3508.4,3508.0,0.002]
[1754144183427,3.0,3508.1,3508.0,0.002]
[1754144183630,33.0,3508.1,3508.0,0.002]
[1754144183863,33.959,3508.1,3508.0,0.002]
[1754144184240,30.959,3508.1,3508.0,0.002]
[1754144184440,33.959,3508.1,3508.0,0.002]
[1754144187471,33.0,3508.1,3508.0,0.002]
[1754144187673,33.4982,3508.1,3508.0,0.002]
[1754144188145,33.959,3508.1,3508.0,0.002]
[1754144189165,3.959,3508.1,3508.0,0.002]
[1754144189371,33.959,3508.1,3508.0,0.002]
[1754144190334,3.959,3508.1,3508.0,0.002]
[1754144190534,33.0,3508.1,3508.0,0.002]
[1754144191330,3.0,3508.1,3508.0,0.002]
[1754144191564,33.959,3508.1,3508.0,0.002]
[1754144192445,34.35073183,3508.1,3508.0,0.002]
[1754144193379,34.90073183,3508.1,3508.0,0.002]
[1754144195083,34.509,3508.1,3508.0,0.002]
[1754144198253,35.27888387,3508.1,3508.0,0.002]
[1754144199736,5.27888387,3508.1,3508.0,0.002]
[1754144199943,48.14088387,3508.1,3508.0,0.002]
[1754144200387,50.99142974,3508.1,3508.0,0.002]
[1754144200685,51.56324974,3508.1,3508.0,0.002]
[1754144200890,56.27924974,3508.1,3508.0,0.002]
[1754144201542,56.58227286,3508.1,3508.0,0.002]
[1754144205370,56.58227286,3508.1,3505.1,0.4814]
[1754144205371,0.286,3507.0,3505.1,0.4814]
[1754144205557,0.55,3506.0,3504.1,9.85239914]
[1754144205897,3.0,3505.6,3505.2,0.929]
[1754144206099,3.0,3505.4,3504.3,0.02853636]
[1754144206385,30.0,3504.9,3504.2,0.98523991]
[1754144206552,30.0,3504.9,3503.7,0.1125905]
[1754144206742,30.0,3504.9,3504.3,0.929]
[1754144206942,30.0,3504.9,3503.7,0.1125905]
[1754144207183,3.0,3504.6,3504.4,0.929]
[1754144207379,30.0,3504.3,3503.8,0.4814]
[1754144207552,30.0,3504.3,3503.9,0.4814]
[1754144208053,4.02269957,3505.4,3504.0,0.929]
[1754144208054,33.0,3504.1,3504.0,0.929]
[1754144208276,3.0,3504.0,3503.7,0.1125905]
[1754144208604,33.0,3503.8,3503.7,0.1125905]
[1754144209695,33.4982,3503.8,3503.7,0.1125905]
[1754144209864,33.959,3503.8,3503.7,0.1125905]
[1754144210405,33.0,3503.8,3503.7,0.5939905]
[1754144210785,1.20583787,3504.3,3503.7,1.0415905]
[1754144210786,30.0,3504.2,3503.7,1.0415905]
[1754144210992,30.0,3504.2,3503.8,0.95754044]
[1754144211307,1.20583787,3504.3,3503.9,10.78139914]
[1754144211458,0.73083787,3504.3,3504.0,1.68769182]
[1754144211658,0.64533787,3504.3,3504.1,0.4814]
[1754144211859,0.64533787,3504.3,3504.2,0.55]
[1754144212107,0.64533787,3504.3,3504.2,2.2354591]
[1754144212317,0.2574,3506.1,3504.9,9.85239914]
[1754144212464,30.0,3506.0,3505.0,0.485]
[1754144212664,30.0,3506.0,3505.1,1.03373991]
[1754144212665,3.0,3505.9,3505.1,1.03373991]
[1754144212908,30.0,3505.8,3505.2,0.485]
[1754144213459,30.0,3506.0,3505.2,0.485]
[1754144214062,0.9183,3507.7,3505.4,0.55]
[1754144214257,30.0,3507.2,3505.5,1.33816678]
[1754144214504,30.0,3507.3,3505.6,0.485]
[1754144214675,3.0,3507.0,3505.6,0.485]
[1754144214875,3.0,3506.6,3505.7,0.18881668]
[1754144215072,30.0,3506.7,3505.7,0.18881668]
[1754144215073,30.0,3507.2,3505.8,0.485]
[1754144215307,0.4478,3507.4,3505.8,0.485]
[1754144215308,30.0,3507.4,3505.8,0.485]
[1754144215607,30.0,3507.2,3505.8,0.485]
[1754144215986,30.0,3507.4,3505.8,0.485]
[1754144216186,3.0,3507.3,3505.8,0.485]
[1754144216419,0.73362,3507.5,3505.8,0.485]
[1754144216420,30.0,3507.0,3505.8,0.485]
[1754144216582,30.0,3506.6,3505.8,0.485]
[1754144216782,1.20412,3507.5,3505.8,0.485]
[1754144216980,3.0,3507.1,3505.8,0.485]
[1754144217198,3.0,3506.9,3505.8,0.485]
[1754144217411,3.0,3506.5,3505.8,0.485]
[1754144217619,0.4478,3507.0,3505.8,0.485]
[1754144217820,30.0,3506.7,3505.8,0.485]
[1754144218230,3.25035217,3508.1,3505.5,0.85316678]
[1754144218231,3.0,3506.4,3505.5,0.85316678]
[1754144218394,30.0,3506.1,3505.1,0.485]
[1754144218596,3.0,3505.8,3505.1,0.485]
[1754144218815,3.0,3505.4,3505.1,0.485]
[1754144219023,3.0,3505.9,3505.2,0.485]
[1754144219225,3.0,3505.7,3503.7,7.60925828]
[1754144219561,30.0,3505.6,3504.5,0.485]
[1754144220388,3.4705,3505.7,3504.4,0.485]
[1754144220389,3.0,3505.3,3504.4,0.485]
[1754144220588,3.0,3505.1,3504.4,0.485]
[1754144220800,3.0,3504.7,3504.4,0.485]
[1754144221021,30.0,3505.8,3504.5,0.485]
[1754144221329,3.0,3505.5,3504.5,0.485]
[1754144221529,30.0,3505.4,3504.5,0.485]
[1754144221732,3.0,3505.3,3504.7,7.49666778]
[1754144221892,30.0,3505.4,3504.7,7.49666778]
[1754144221893,3.0,3505.7,3504.8,0.74966678]
[1754144222088,3.0,3505.5,3504.8,0.74966678]
[1754144222306,30.0,3505.4,3504.8,0.74966678]
[1754144222694,0.4705,3505.3,3504.3,0.485]
[1754144223033,30.0,3505.0,3503.7,0.1125905]
[1754144223344,0.9183,3504.9,3503.7,0.1125905]
[1754144223669,0.9183,3504.8,3503.7,0.1125905]
[1754144223951,3.0,3504.4,3503.7,0.1125905]
[1754144224165,30.0,3504.3,3503.7,0.1125905]
[1754144224523,3.0,3504.1,3503.7,0.1125905]
[1754144224708,0.28599,3505.3,3503.7,0.1125905]
[1754144224909,3.0,3504.7,3503.8,0.485]
[1754144225146,30.0,3504.6,3503.8,0.485]
[1754144225344,30.4478,3504.6,3503.7,0.1125905]
[1754144225553,3.0,3504.2,3503.7,0.1125905]
[1754144225716,0.4478,3504.6,3503.7,0.1125905]
[1754144225915,3.0,3504.2,3503.7,0.1125905]
[1754144226258,3.0,3504.4,3503.7,0.5975905]
[1754144226457,0.65993299,3504.6,3503.7,0.5975905]
[1754144226614,3.0,3504.4,3503.7,0.5975905]
[1754144226952,30.0,3504.5,3503.7,0.5975905]
[1754144227116,3.0,3504.1,3503.7,0.1125905]
[1754144227316,0.9183,3504.0,3503.7,0.1125905]
[1754144227516,30.0,3503.9,3503.7,0.1125905]
[1754144227828,0.9183,3503.9,3503.7,0.1125905]
[1754144228441,0.4478,3503.9,3503.7,0.1125905]
[1754144228753,0.21213299,3504.6,3503.7,0.1125905]
[1754144228754,30.9183,3503.8,3503.7,0.1125905]
[1754144228955,33.9183,3503.8,3503.7,0.1125905]
[1754144245197,34.4683,3503.8,3503.7,0.1125905]
[1754144245590,34.86803288,3503.8,3503.7,0.1125905]
[1754144245790,34.23573288,3503.7,3503.6,0.002]
[1754144245995,38.05275851,3503.7,3503.6,0.002]
[1754144246184,35.19863288,3503.7,3503.6,0.002]
[1754144246715,34.7989,3503.7,3503.6,0.002]
[1754144247777,34.5129,3503.7,3503.6,0.002]
[1754144247977,33.4704,3503.7,3503.6,0.002]
[1754144248193,33.0,3503.7,3503.6,0.002]
[1754144248395,30.0,3503.7,3503.6,0.002]
[1754144248582,30.0,3504.5,3503.6,0.4925]
[1754144248782,3.0,3504.2,3503.6,0.4925]
[1754144249004,30.0,3503.9,3503.6,0.4925]
[1754144249174,0.28606,3504.5,3503.6,0.4925]
[1754144249175,0.28606,3504.5,3503.7,0.4905]
[1754144249378,30.0,3504.4,3503.7,0.4905]
[1754144250015,3.0,3504.1,3503.7,0.4905]
[1754144250216,30.0,3504.4,3503.7,0.4905]
[1754144250401,30.0,3504.4,3503.8,9.87737844]
[1754144250717,3.0,3504.1,3503.9,1.52748784]
[1754144250919,0.28606,3504.5,3504.0,0.4905]
[1754144250920,30.0,3504.4,3504.0,0.4905]
[1754144251230,0.28606,3504.5,3504.0,0.4905]
[1754144251523,30.0,3505.3,3504.1,0.57853799]
[1754144251693,30.0,3505.3,3504.2,1.34764704]
[1754144251882,3.0,3505.0,3504.3,0.4905]
[1754144252088,3.0,3504.8,3504.3,0.4905]
[1754144252420,30.0,3505.5,3504.4,7.50243244]
[1754144252627,30.0,3505.5,3504.5,1.37550795]
[1754144252783,3.0,3505.2,3504.5,0.88500795]
[1754144253095,0.001,3505.6,3504.6,0.4905]
[1754144253276,3.0,3505.2,3504.6,0.4905]